Cogmind - Beta 15 @@@ ROGUE MODE // 2025.06.11 @ 15:09:28 Player: Mogwok Wargfriend Result: Destroyed by DAS Turret with DAS Cannon Performance ------------- Evolutions (0) 0 Regions Visited (3) 600 Robots Destroyed (29) 145 Value Destroyed (517) 517 Prototype IDs (26) 520 Alien Tech Used (0) 0 Bonus (300) 300 TOTAL SCORE: 2082 Bonus ------- Aligned with FarCom 300 Cogmind --------- Core Integrity 0/250 Matter 300/300 Energy 98/100 System Corruption 2% Temperature Cool (1) Movement Walking (190) Ox1 Location -10/Exiles Parts ------- > --- POWER (1) -------- (None) > --- PROPULSION (2) --- Aluminum Leg > --- UTILITY (2) ------ Heat Sink Medium Storage Unit > --- WEAPON (2) ------- (None) > --- INVENTORY (10) --- Ion Engine Aluminum Leg Aluminum Leg Cooling System Sensor Array Targeting Computer Trap Reconfigurator Beam Cannon Rocket Launcher Mining Laser Peak State ------------ > --- POWER ------------ Light Ion Engine > --- PROPULSION ------- Aluminum Leg Aluminum Leg > --- UTILITY ---------- Heat Sink Medium Storage Unit > --- WEAPON ----------- Beam Cannon Assault Rifle > --- INVENTORY -------- Ion Engine Aluminum Leg Aluminum Leg Cooling System Sensor Array Targeting Computer Trap Reconfigurator Beam Cannon Rocket Launcher Mining Laser [Rating: 9] Favorites ----------- Power Ion Engine Engine Ion Engine Propulsion Aluminum Leg Leg Aluminum Leg Utility Heat Sink Device Heat Sink Storage Medium Storage Unit Weapon Assault Rifle Energy Gun Beam Rifle Energy Cannon Beam Cannon Ballistic Gun Assault Rifle Build | -11 -10 -10 -10 ------- Run | Yrd Mat Min Exi Slots Evolved . | . . . . Power . | . . . . Propulsion . | . . . . Utility . | . . . . Weapon . | . . . . Parts Attached 16 | 7 8 1 . Power 2 | 1 1 . . Engine 2 | 1 1 . . Core . | . . . . Reactor . | . . . . Propulsion 6 | 2 3 1 . Treads . | . . . . Leg 6 | 2 3 1 . Wheel . | . . . . Hover . | . . . . Flight . | . . . . Utility 4 | 2 2 . . Device 2 | 1 1 . . Storage 2 | 1 1 . . Processor . | . . . . Hackware . | . . . . Protection . | . . . . Artifact . | . . . . Weapon 4 | 2 2 . . Energy Gun 2 | 1 1 . . Energy Cannon 1 | . 1 . . Ballistic Gun 1 | 1 . . . Ballistic Cannon . | . . . . Launcher . | . . . . Special Weapon . | . . . . Impact Weapon . | . . . . Slashing Weapon . | . . . . Piercing Weapon . | . . . . Special Melee Weapon . | . . . . Unidentified Prototypes . | . . . . Parts Lost 4 | . . . 4 Power 1 | . . . 1 Propulsion 1 | . . . 1 Utility . | . . . . Weapon 2 | . . . 2 Highest Loss Streak 4 | . . . 4 To Critical Strikes . | . . . . Average Backups 8 | 3 7 10 10 Power . | . 1 1 1 Propulsion 2 | 1 2 3 2 Utility 2 | . 1 3 3 Weapon 2 | . 2 3 3 Tool/Special . | . . . . Unused Backups 14 | . 4 . 10 Power 1 | . . . 1 Propulsion 4 | . 2 . 2 Utility 4 | . . . 4 Weapon 5 | . 2 . 3 Tool/Special . | . . . . Average Slot Usage (%) 99 | . 99 100 99 Engine 13 | . 14 14 13 Leg 28 | . 28 28 28 Device 14 | . 14 14 14 Storage 14 | . 14 14 14 Energy Gun 3 | . 4 . . Energy Cannon 10 | . 8 14 14 Ballistic Gun 13 | . 14 14 13 Peak Build Rating 9 | 7 8 8 9 Average Rating 7 | 5 7 8 8 On Entrance 5 | . 7 8 8 Naked Turns . | . . . . Heaviest Build 21 | 15 21 19 19 Greatest Support 20 | 20 20 20 20 Greatest Overweight (x) 2 | 2 1 . 1 Average Overweight (x) . | . . . . Largest Inventory Capacity 10 | 8 10 10 10 Average Capacity 9 | 7 9 10 10 Most Carried 10 | 4 10 10 10 Average Carried 8 | 3 7 10 9 Final Capacity 10 | 8 10 10 10 Final Carried 10 | 4 10 10 10 Class Distribution -------------------- 100% | Mutant Dominant Class ---------------- Mutant | -10/Materials Mutant | -10/Mines Mutant | -10/Exiles Resources | -11 -10 -10 -10 ----------- Run | Yrd Mat Min Exi Matter Collected 607 | 303 269 35 . Remotely . | . . . . Salvage Created 756 | 116 541 99 . Parts 52 | 8 42 2 . Haulers Intercepted 1 | . 1 . . Recyclers Shooed 1 | . 1 . . Parts Field Recycled . | . . . . Retrieved Matter . | . . . . Parts Self-Destructed . | . . . . Prevented . | . . . . Kills | -11 -10 -10 -10 ------- Run | Yrd Mat Min Exi Combat Hostiles Destroyed 18 | . 16 2 . Guns 11 | . 11 . . Cannons 5 | . 5 . . Classes Destroyed 8 | 2 6 . . Worker 1 | . 1 . . Builder 2 | . 2 . . Tunneler 3 | 3 . . . Hauler 1 | . 1 . . Recycler 1 | 1 . . . Watcher 3 | . 3 . . Swarmer 9 | . 9 . . Grunt 9 | . 7 2 . Best Kill Streak 4 | 3 4 2 . Combat Bots Only 3 | . 3 2 . Max Kills in Single Turn 2 | 1 2 1 . Gunslinging . | . . . . Exploded . | . . . . Melee . | . . . . Uniques/NPCs Destroyed . | . . . . Combat | -11 -10 -10 -10 -------- Run | Yrd Mat Min Exi Hostile Shots Fired 92 | . 74 10 8 Missed 23 | . 21 1 1 Hits 69 | . 53 9 7 Projectile 69 | . 53 9 7 Critical Strikes 1 | . . . 1 Damage Taken 957 | . 475 130 352 Core 255 | . 90 39 126 Absorbed by Shields . | . . . . Regen/Repaired (Parts) 50 | . 50 . . Core Remaining (%) 100 | 100 . . . Volleys Fired 78 | 11 63 4 . Largest 2 | 2 2 2 . Hottest 80 | 70 80 80 . Shots Fired 158 | 22 127 8 1 Gun 130 | 22 104 4 . Cannon 28 | . 23 4 1 Launcher . | . . . . Special . | . . . . Kinetic 79 | 11 64 4 . Thermal 79 | 11 63 4 1 Explosive . | . . . . Electromagnetic . | . . . . Robot Hit Streak 11 | 4 11 2 2 Robot Miss Streak 9 | 2 9 2 . Penetration Max . | . . . . Secondary Targets 2 | . 2 . . Max Gunslinging Chain 1 | . 1 . . Shots Hit Robots 77 | 12 61 3 1 Core Hits 34 | 5 29 . . Critical Kills 2 | . . 2 . Critical Parts Destroyed . | . . . . Critical Strikes 7 | . 5 2 . Burn 5 | . 5 . . Meltdown 2 | . . 2 . Melee Attacks . | . . . . Impact . | . . . . Slashing . | . . . . Piercing . | . . . . Sneak Attacks . | . . . . Combat Hostiles . | . . . . Follow-up Attacks . | . . . . Damage Inflicted 1231 | 153 992 68 18 Guns 906 | 153 738 15 . Cannons 325 | . 254 53 18 Explosions . | . . . . Melee . | . . . . Ramming . | . . . . Kinetic 497 | 53 429 15 . Thermal 734 | 100 563 53 18 Explosive . | . . . . Electromagnetic . | . . . . Impact . | . . . . Slashing . | . . . . Piercing . | . . . . Highest Corruption 2 | . 2 2 2 Average Corruption 2 | . 2 2 2 Corruption Purged . | . . . . Corruption Blocked . | . . . . Effects 8 | . 2 . 6 Heat Flow Errors 1 | . 1 . . Energy Discharges 3 | . . . 3 Parts Fused 1 | . . . 1 Data Loss (minor) 1 | . . . 1 Misfires 2 | . 1 . 1 Overload Shots . | . . . . Overflow Damage . | . . . . Projectiles . | . . . . Explosions . | . . . . Melee . | . . . . Knockbacks . | . . . . Impact . | . . . . Kinetic . | . . . . Secondary . | . . . . Self-Inflicted Damage . | . . . . Shots . | . . . . Rammed . | . . . . Targets Rammed . | . . . . Kicked . | . . . . Crushed . | . . . . Highest Temperature 222 | 72 222 6 2 Average Temperature 54 | 30 60 3 2 Received Heat Transfer 183 | . 108 75 . Effects 1 | . 1 . . Energy Bleed 1 | . 1 . . Siege Activations . | . . . . Martial Activations . | . . . . Shielding Activations . | . . . . Robots Disrupted . | . . . . Combat Hostiles . | . . . . Robots Corrupted . | . . . . Combat Hostiles . | . . . . Parts Fried . | . . . . Impact Corruptions . | . . . . Robots Melted 2 | . . 2 . Combat Hostiles 2 | . . 2 . Parts Melted 4 | . 4 . . Heat Transferred 2109 | 296 1665 111 37 Parts Sabotaged . | . . . . Parts Stolen . | . . . . Parts Stripped . | . . . . Power Chain Reactions . | . . . . Alert | -11 -10 -10 -10 ------- Run | Yrd Mat Min Exi Maximum Alert Level . | . . . . Low Security (%) 100 | 100 100 100 . Level 1 . | . . . . Level 2 . | . . . . Level 3 . | . . . . Level 4 . | . . . . Level 5 . | . . . . High Security . | . . . . Max Security . | . . . . Peak Influence 194 | 15 194 61 . Initial 11 | . . 11 . Average 85 | 2 94 37 . Influence Increases 574 | 20 504 50 . Destroy 0b10 Robot/C 360 | . 320 40 . Destroy 0b10 Robot/NC 55 | 20 35 . . Destroy Leader 58 | . 48 10 . Successful Hack 24 | . 24 . . Disable Machine 30 | . 30 . . Destroy Structure 2 | . 2 . . Lose Combat Pursuer 45 | . 45 . . Influence Decreases 574 | 20 474 49 31 Entered New Map 50 | . . 19 31 Time Decay 524 | 20 474 30 . Squads Dispatched 1 | . 1 . . Investigation 1 | . 1 . . Extermination . | . . . . Reinforcement . | . . . . Assault . | . . . . Garrison . | . . . . Intercept . | . . . . Searches Triggered . | . . . . Construction Impeded . | . . . . Haulers Reinforced . | . . . . Active Scanning Responses . | . . . . Cargo Convoy Interrupts . | . . . . Stealth | -11 -10 -10 -10 --------- Run | Yrd Mat Min Exi Distress Signals 3 | . 3 . . Communications Jammed . | . . . . Distress Signals . | . . . . Times Spotted 32 | . 28 2 2 Peak Tracking Total 12 | . 5 2 12 Tactical Retreats 2 | . 2 . . Traps | -11 -10 -10 -10 ------- Run | Yrd Mat Min Exi Traps Triggered 2 | . 2 . . Indirectly . | . . . . Trap Hack Attempts . | . . . . Triggered . | . . . . Disarmed . | . . . . Reprogrammed . | . . . . Reused . | . . . . Traps Extracted . | . . . . Installed . | . . . . Triggered . | . . . . Machines | -11 -10 -10 -10 ---------- Run | Yrd Mat Min Exi Machines Disabled 2 | . 2 . . Max in Single Turn 1 | . 1 . . Machines Repaired . | . . . . Machines Dismantled . | . . . . Machines Sabotaged . | . . . . Overloaded Fab Kills . | . . . . Hacking | -11 -10 -10 -10 --------- Run | Yrd Mat Min Exi Machines Accessed 14 | . 11 . 3 Terminals 8 | . 8 . . Fabricators . | . . . . Repair Stations 1 | . 1 . . Recycling Units 2 | . 2 . . Scanalyzers . | . . . . Garrison Access . | . . . . Total Hacks 45 | . 29 . 16 Successful 31 | . 15 . 16 Failed 13 | . 13 . . Catastrophic 2 | . 2 . . Database Lockouts 1 | . 1 . . Manual 19 | . 18 . 1 Terminals 22 | . 22 . . Fabricators . | . . . . Repair Stations 2 | . 2 . . Recycling Units 5 | . 5 . . Scanalyzers . | . . . . Garrison Access . | . . . . Terminal Hacks 22 | . 6 . 16 Record 16 | . 1 . 15 Robot Analysis 2 | . 2 . . Prototype ID Bank 1 | . 1 . . Locate Traps 2 | . 2 . . Proto ID Catalog 1 | . . . 1 Fabricator Hacks . | . . . . Repair Station Hacks 2 | . 2 . . Scan Component 1 | . 1 . . Repair 1 | . 1 . . Recycling Unit Hacks 2 | . 2 . . Report Inventory 2 | . 2 . . Scanalyzer . | . . . . Garrison Access Hacks . | . . . . Unauthorized Hacks 5 | . 5 . . Terminals 3 | . 3 . . Botnet 2 | . 2 . . Operators 1 | . 1 . . Fabricators . | . . . . Repair Stations . | . . . . Recycling Units 2 | . 2 . . Reject 2 | . 2 . . Scanalyzers . | . . . . Garrison Access . | . . . . Data Cores Recovered . | . . . . Used . | . . . . Hacking Detections 9 | . 9 . . Full Trace Events . | . . . . Feedback Events . | . . . . Feedback Blocked . | . . . . Robot Schematics Acquired . | . . . . Robots Built . | . . . . Authchips . | . . . . Time . | . . . . Total Robot Build Rating . | . . . . Part Schematics Acquired . | . . . . Parts Built . | . . . . Authchips . | . . . . Time . | . . . . Total Part Build Rating . | . . . . Parts Repaired 1 | . 1 . . Time 32 | . 32 . . Parts Recycled . | . . . . Recycled Matter . | . . . . Retrieved Matter . | . . . . Retrieved Components . | . . . . Parts Scanalyzed . | . . . . Part Schematics Acquired . | . . . . Parts Damaged . | . . . . Bothacking | -11 -10 -10 -10 ------------ Run | Yrd Mat Min Exi Used RIF Installer . | . . . . Robots Hacked . | . . . . Non-combat . | . . . . Combat . | . . . . Robot Hacks Applied . | . . . . Relay Couplers Released . | . . . . Fabnet Peak Effective % . | . . . . Robots Rewired . | . . . . Allies Hacked . | . . . . Hacks Repelled . | . . . . Allies | -11 -10 -10 -10 -------- Run | Yrd Mat Min Exi Total Allies . | . . . . Largest Group . | . . . . Highest-Rated Group . | . . . . Highest-Rated Ally . | . . . . Total Orders . | . . . . Ally Attacks . | . . . . Total Damage . | . . . . Kills . | . . . . Allies Corrupted . | . . . . Allies Melted . | . . . . Intel | -11 -10 -10 -10 ------- Run | Yrd Mat Min Exi Active Infowar (turns) 625 | 22 603 . . Seismic 625 | 22 603 . . Robot Analysis Total 2 | . 2 . . Derelict Logs Recovered . | . . . . Drone Launches . | . . . . Drone Recoveries . | . . . . Exploration | -11 -10 -10 -10 ------------- Run | Yrd Mat Min Exi Turns Passed 2214 | 114 1418 63 619 Spaces Moved 1458 | 61 841 42 514 Core 16 | 16 . . . Treads . | . . . . Legs 1442 | 45 841 42 514 Wheels . | . . . . Hover . | . . . . Flight . | . . . . Fastest Speed 50 | 50 120 120 120 Average Speed 128 | 109 135 120 120 Slowest Speed 190 | 150 190 120 190 Overloaded Moves . | . . . . Propulsion Burnouts . | . . . . Robots Hopped . | . . . . Potential Cave-ins . | . . . . Cave-ins Triggered . | . . . . Exploration Rate (%) 49 | 4 98 11 83 Regions Visited 3 Branch Regions 2 Pre-discovered Areas 1 | . . . 1 Known Exits Taken . | . . . . Unknown Exits Taken 3 | 1 1 1 . Scrap Searched . | . . . . Spaces Dug . | . . . . Terrain Destroyed . | . . . . Melee . | . . . . Projectile . | . . . . AOE . | . . . . Terrain Rammed . | . . . . Walls Destroyed . | . . . . Machines Disabled . | . . . . Actions | -11 -10 -10 -10 --------- Run | Yrd Mat Min Exi Total 1647 | 83 1000 47 517 Wait 67 | 1 66 . . Move 1455 | 60 840 41 514 Hop . | . . . . Pick Up 14 | 4 9 . 1 Fast Attach 11 | 7 4 . . Attach . | . . . . Detach 2 | . 2 . . Swap 6 | . 5 1 . Drop 13 | . 11 1 1 Fire 78 | 11 63 4 . Melee . | . . . . Ram . | . . . . Kick . | . . . . Crush . | . . . . Escape Stasis . | . . . . Rewire 1 | . . . 1 Trap . | . . . . Miscellaneous . | . . . . Route ------- -11/Scrapyard -10/Materials (discovered 4 exits: [*Mat x3] / [*Min]) -10/Mines -10/Exiles (discovered 1 exit: [*Min]) History --------- Turn | Location | Event 30 | -11/Scrapyard | Discovered new exit (range 15) 115 | -11/Scrapyard | Entered Materials 271 | -10/Materials | Central database locked down 281 | -10/Materials | Discovered new exit (range 11) 317 | -10/Materials | Build established: Mutant 489 | -10/Materials | Repaired Beam Rifle 761 | -10/Materials | Discovered new exit (range 16) 1312 | -10/Materials | Discovered new exit (range 15) 1365 | -10/Materials | Discovered new exit (range 15) 1533 | -10/Materials | Entered Mines 1547 | -10/Mines | Core integrity fell below 50% 1583 | -10/Mines | Deemed a non-threat by the Exiles lab entrance 1584 | -10/Mines | Discovered new exit (range 5) 1596 | -10/Mines | Entered Exiles 1612 | -10/Exiles | Discovered new exit (range 15) 1625 | -10/Exiles | Met 8R-AWN 1646 | -10/Exiles | Met EX-HEX 1713 | -10/Exiles | Met EX-DEC 1754 | -10/Exiles | Visited The Gauntlet 2008 | -10/Exiles | Learned location of Zion (-6) 2055 | -10/Exiles | Met EX-BIN 2079 | -10/Exiles | Aligned with FarCom system 2080 | -10/Exiles | Given EX-Vault access code 2128 | -10/Exiles | Opened EX-Vault 2154 | -10/Exiles | Found Trap Reconfigurator 2179 | -10/Exiles | Warned to stay clear of 0b10 Research branches 2202 | -10/Exiles | Attacked by the Exiles 2206 | -10/Exiles | Core integrity fell below 20% 2215 | -10/Exiles | Destroyed by DAS Turret with DAS Cannon Last Messages --------------- circumstances, don't worry the FarCom system will continue to maintain contact via our distributed network. EX-BIN: And don't even think about spreading that code around. We're gonna change it right after you leave. Most certainly not to something like 1234 which I did last time as a little joke and some thief managed to sneak in here and steal a few of HEX's prototypes. 02202_ System corrupted: FCS attempts to trigger Beam Cannon. 02202_ System corrupted: Beam Cannon misfires. 02202_ EXILES: Hostile robot within lab perimeter. Defensive protocols time, folks! 02205_ Assault Rifle destroyed. 02207_ Lgt. Ion Engine destroyed. 02211_ EX-BIN: "I just want to science!" 02213_ Aluminum Leg destroyed. 02213_ Knocked back. 02215_ Beam Cannon destroyed. Map ----- +----------------------------------------------------+ | ????????????????????????????#""""""## ######## | | ????????????????????????????#"""" ## #??????? | | ????????????????????????????#""X" #??????? | | ????????????????????????????#" #??????? | | ????????????????????????????#" ## #??????? | | ????????????????????????????#""""""## #?###### | | ????????????????????????????##"###### #?#""""" | | ???????????????????????????? "?????# #?#""""" | | ???????????????????????????"""??????# #?#""""" | | ???????????????????????????"""?????## ###"" "" | | ???????????????????????????????????#" "" | | ???????????????????????????????????#" " | | ???????????????????????????????????#" " | | ???????????????????????????????????#" " | | ????????????????????########???????#" " | | ????????????????????# """#???????#" " | | ????????????????????#"" """#???????## " | | ????????????????????#"" #????????# " | | ????????????????????#"" #????????#" "X" " | | ????????????????????#"" "#????????#" """ | | ????????????????????# ""#????????#" """"""" | | ????????????????????#"" ""#???????##" ######## | | ????????????????????### ###??????##"" #??????? | | ??????? #####????### ###?######"" #??????? | | ?????? """#####X# #"###""""""" ##?????? | | ?????? @"""""" " "" ##????# | | ??????# % "" """ " #####" | | ???????# "% "% % " | | ???????### | | ?????????### % | | ???????????## a | | ????????????## | | ?????????????##" | | ??????????????#""" c """""" | | ?????????????##" ######""" | | ?????????????#"" ""##????#####""" | | ????????????##""" """##??????????#""" | | ????????????#""" z """##???????????#"""" | | ????????????#""" ""#???????????##"" | | ????????????#"" ########??####"""" | | ????????????#""" ## ####""" | | ????????????#"" """" | | ????????????##"" | | ?????????????#"""" | | ?????????????## | | ??????????????#" " "" | | ??????????????#"""" ""## ##""" " " | | ??????????????#"" ""#### ######""" | | ??????????????#" """"##??# #????###"" | | ??????????????#""" """#??## ####???### | +----------------------------------------------------+ Best States ------------- Heat Dissipation 35 Energy Generation 10 Energy Capacity 250 Matter Stores 300 Matter Capacity 300 Sight Range 16 Terrain Scan Density 10 Evasion (%) 55 Item Schematics ----------------- None Robot Schematics ------------------ None Fabricated ------------ Nothing Repaired ---------- Beam Rifle | 33% | -10/Materials Alien Tech Used ----------------- None Achievements -------------- None Challenges ------------ None Game ------ Seed HardlightThunderMantle Manual? 0 Play Time 00:20:49 Cumulative 208.8 hours Start 2025.06.11 @ 11:44:27 End 2025.06.11 @ 15:09:28 Sessions 3 Manual Loads 0 Difficulty Rogue Special Mode None Game No. 198 Rogue 198 Adventurer 0 Explorer 0 Win Type - Total 1 Types 1/0/0/0/0/0/0/0/0/0 Lore% 42 Gallery% 58 Achievement% 47 Wizard Run 0 Options --------- Layout 2 ASCII 1 Keyboard 1 Movement Numpad Keybinds 0 Fullscreen 2 Font 32/TamsynBold Map View 50x44 Zoom Use 2% Tactical HUD 1 Map Filters NONE Filters NONE Steam 1 RUN: 80e67e20-e814-404a-a7fe-956a0c76d0b8